Cogmind - Beta 15 @@@ ROGUE MODE // 2025.10.14 @ 02:31:15 Player: Bean Result: Smashed by cave-in Performance ------------- Evolutions (0) 0 Regions Visited (4) 800 Robots Destroyed (15) 75 Value Destroyed (347) 347 Prototype IDs (23) 460 Alien Tech Used (0) 0 Bonus (300) 300 TOTAL SCORE: 1982 Bonus ------- Aligned with FarCom 300 Cogmind --------- Core Integrity 0/250 Matter 290/300 Energy 118/250 System Corruption 4% Temperature Cool (1) Movement Core (250) Ox4 Location -9/Mines Parts ------- > --- POWER (1) -------- Ion Engine > --- PROPULSION (2) --- (None) > --- UTILITY (2) ------ Small Storage Unit Improved Terrain Scanner > --- WEAPON (2) ------- Medium Laser Small Laser > --- INVENTORY (8) ---- Light Ion Engine Light Ion Engine Aluminum Leg Hover Unit Experimental Sensor Array Small Laser Latent Energy Streamer Peak State ------------ > --- POWER ------------ Ion Engine > --- PROPULSION ------- Aluminum Leg Aluminum Leg > --- UTILITY ---------- Small Storage Unit Improved Terrain Scanner > --- WEAPON ----------- Medium Laser Latent Energy Streamer > --- INVENTORY -------- Light Ion Engine Light Ion Engine Aluminum Leg Experimental Sensor Array Medium Laser Small Laser Small Laser [Rating: 19] Favorites ----------- Power Light Ion Engine Engine Light Ion Engine Propulsion Aluminum Leg Leg Aluminum Leg Utility Small Storage Unit Device Improved Terrain Scanner Storage Small Storage Unit Weapon Medium Laser Energy Gun Medium Laser Energy Cannon Latent Energy Streamer Special Weapon Mining Laser Build | -11 -10 -10 -10 -9 ------- Run | Yrd Mat Min Exi Min Slots Evolved . | . . . . . Power . | . . . . . Propulsion . | . . . . . Utility . | . . . . . Weapon . | . . . . . Parts Attached 13 | 8 1 1 1 2 Power 3 | 1 1 1 . . Engine 3 | 1 1 1 . . Core . | . . . . . Reactor . | . . . . . Propulsion 3 | 2 . . 1 . Treads . | . . . . . Leg 3 | 2 . . 1 . Wheel . | . . . . . Hover . | . . . . . Flight . | . . . . . Utility 2 | 2 . . . . Device 1 | 1 . . . . Storage 1 | 1 . . . . Processor . | . . . . . Hackware . | . . . . . Protection . | . . . . . Artifact . | . . . . . Weapon 5 | 3 . . . 2 Energy Gun 3 | 3 . . . . Energy Cannon 1 | . . . . 1 Ballistic Gun . | . . . . . Ballistic Cannon . | . . . . . Launcher . | . . . . . Special Weapon 1 | . . . . 1 Impact Weapon . | . . . . . Slashing Weapon . | . . . . . Piercing Weapon . | . . . . . Special Melee Weapon . | . . . . . Unidentified Prototypes . | . . . . . Parts Lost 6 | . 1 1 . 4 Power 1 | . 1 . . . Propulsion 3 | . . 1 . 2 Utility . | . . . . . Weapon 2 | . . . . 2 Highest Loss Streak 4 | . 1 1 . 4 To Critical Strikes . | . . . . . Average Backups 5 | 1 4 7 7 7 Power 1 | . . 1 2 2 Propulsion 1 | . 1 2 1 1 Utility . | . . . 1 1 Weapon 2 | . 1 3 3 3 Tool/Special . | . . . . . Unused Backups 4 | . . . . 4 Power 1 | . . . . 1 Propulsion 1 | . . . . 1 Utility 1 | . . . . 1 Weapon 1 | . . . . 1 Tool/Special . | . . . . . Average Slot Usage (%) 94 | . 99 85 94 94 Engine 13 | . 13 14 14 14 Leg 23 | . 28 14 22 25 Device 14 | . 14 14 14 14 Storage 14 | . 14 14 14 14 Energy Gun 27 | . 28 28 28 22 Peak Build Rating 19 | 9 9 9 11 19 Average Rating 8 | 5 8 8 10 11 On Entrance 7 | . 9 9 9 11 Naked Turns . | . . . . . Heaviest Build 15 | 13 13 15 15 15 Greatest Support 20 | 20 20 10 20 20 Greatest Overweight (x) 1 | . . 1 1 1 Average Overweight (x) . | . . 1 . . Largest Inventory Capacity 8 | 8 8 8 8 8 Average Capacity 7 | 6 8 8 8 8 Most Carried 8 | 3 6 8 8 8 Average Carried 5 | 1 4 7 7 7 Final Capacity 8 | 8 8 8 8 8 Final Carried 8 | 2 6 8 8 7 Class Distribution -------------------- 98% | Mutant Dominant Class ---------------- Mutant | -10/Materials Mutant | -10/Mines Mutant | -10/Exiles Commander-Skirmisher | -9/Mines Resources | -11 -10 -10 -10 -9 ----------- Run | Yrd Mat Min Exi Min Matter Collected 320 | 259 31 10 . 20 Remotely . | . . . . . Salvage Created 442 | 43 299 80 . 20 Parts 24 | 8 14 2 . . Haulers Intercepted . | . . . . . Recyclers Shooed . | . . . . . Parts Field Recycled . | . . . . . Retrieved Matter . | . . . . . Parts Self-Destructed . | . . . . . Prevented . | . . . . . Kills | -11 -10 -10 -10 -9 ------- Run | Yrd Mat Min Exi Min Combat Hostiles Destroyed 11 | . 8 2 . 1 Guns 11 | . 8 2 . 1 Classes Destroyed 5 | 1 3 . . 1 Tunneler 3 | 3 . . . . Watcher 2 | . 2 . . . Swarmer 3 | . 3 . . . Grunt 7 | . 5 2 . . Assembled 1 | . . . . 1 Best Kill Streak 3 | 2 3 2 . 1 Combat Bots Only 3 | . 3 2 . 1 Max Kills in Single Turn 1 | 1 1 1 . 1 Gunslinging . | . . . . . Exploded . | . . . . . Melee . | . . . . . Uniques/NPCs Destroyed . | . . . . . Combat | -11 -10 -10 -10 -9 -------- Run | Yrd Mat Min Exi Min Hostile Shots Fired 75 | . 33 10 . 32 Missed 20 | . 5 2 . 13 Hits 55 | . 28 8 . 19 Projectile 55 | . 28 8 . 19 AOE 4 | . . . . 4 Part Disruptions 1 | . . . . 1 Damage Taken 944 | . 292 109 . 543 Core 259 | . 71 28 . 160 Absorbed by Shields . | . . . . . Core Remaining (%) 100 | 100 . . . . Volleys Fired 44 | 7 27 5 . 5 Largest 2 | 2 2 2 . 2 Hottest 150 | 100 100 100 . 150 Shots Fired 86 | 14 54 10 . 8 Gun 84 | 14 54 10 . 6 Cannon 1 | . . . . 1 Launcher . | . . . . . Special 1 | . . . . 1 Kinetic . | . . . . . Thermal 85 | 14 54 10 . 7 Explosive . | . . . . . Electromagnetic 1 | . . . . 1 Robot Hit Streak 8 | 3 7 8 . 1 Robot Miss Streak 4 | 3 4 2 . 2 Penetration Max . | . . . . . Secondary Targets 1 | . 1 . . . Max Gunslinging Chain 1 | . 1 . . . Shots Hit Robots 43 | 6 28 8 . 1 Core Hits 28 | 3 16 5 . 4 Critical Kills . | . . . . . Critical Parts Destroyed . | . . . . . Critical Strikes 6 | 2 3 1 . . Burn 6 | 2 3 1 . . Melee Attacks . | . . . . . Impact . | . . . . . Slashing . | . . . . . Piercing . | . . . . . Sneak Attacks . | . . . . . Combat Hostiles . | . . . . . Follow-up Attacks . | . . . . . Damage Inflicted 580 | 87 350 120 . 23 Guns 569 | 87 350 120 . 12 Cannons . | . . . . . Explosions 11 | . . . . 11 Melee . | . . . . . Ramming . | . . . . . Kinetic . | . . . . . Thermal 569 | 87 350 120 . 12 Explosive . | . . . . . Electromagnetic 11 | . . . . 11 Impact . | . . . . . Slashing . | . . . . . Piercing . | . . . . . Highest Corruption 1 | . . . . 1 Average Corruption 1 | . . . . 1 Corruption Purged . | . . . . . Corruption Blocked . | . . . . . Overload Shots . | . . . . . Overflow Damage . | . . . . . Projectiles . | . . . . . Explosions . | . . . . . Melee . | . . . . . Knockbacks . | . . . . . Impact . | . . . . . Kinetic . | . . . . . Secondary . | . . . . . Self-Inflicted Damage 28 | . . . . 28 Shots 1 | . . . . 1 Rammed . | . . . . . Targets Rammed . | . . . . . Kicked . | . . . . . Crushed . | . . . . . Highest Temperature 258 | 117 240 258 . 80 Average Temperature 92 | 48 105 135 . 38 Received Heat Transfer 234 | . 111 63 . 60 Siege Activations . | . . . . . Martial Activations . | . . . . . Shielding Activations . | . . . . . Robots Disrupted . | . . . . . Combat Hostiles . | . . . . . Robots Corrupted . | . . . . . Combat Hostiles . | . . . . . Parts Fried . | . . . . . Impact Corruptions . | . . . . . Robots Melted . | . . . . . Combat Hostiles . | . . . . . Parts Melted 11 | 2 8 1 . . Heat Transferred 2097 | 407 1258 407 . 25 Parts Sabotaged . | . . . . . Parts Stolen . | . . . . . Parts Stripped . | . . . . . Power Chain Reactions . | . . . . . Latent Energy Used 53 | . . . . 53 LE Corruption 1 | . . . . 1 Alert | -11 -10 -10 -10 -9 ------- Run | Yrd Mat Min Exi Min Maximum Alert Level . | . . . . . Low Security (%) 100 | 100 100 100 . 100 Level 1 . | . . . . . Level 2 . | . . . . . Level 3 . | . . . . . Level 4 . | . . . . . Level 5 . | . . . . . High Security . | . . . . . Max Security . | . . . . . Peak Influence 86 | 5 86 70 . 1 Initial 30 | . . 30 . . Average 18 | 1 23 20 . . Influence Increases 322 | 15 256 50 . 1 Destroy 0b10 Robot/C 200 | . 160 40 . . Destroy 0b10 Robot/NC 25 | 15 10 . . . Destroy Leader 44 | . 34 10 . . Successful Hack 20 | . 20 . . . Destroy Structure 3 | . 2 . . 1 Partial Spotted 15 | . 15 . . . Lose Combat Pursuer 15 | . 15 . . . Influence Decreases 322 | 15 178 128 . 1 Entered New Map 48 | . . 48 . . Time Decay 253 | 15 168 70 . . Lost Part 21 | . 10 10 . 1 Squads Dispatched 1 | . 1 . . . Investigation 1 | . 1 . . . Extermination . | . . . . . Reinforcement . | . . . . . Assault . | . . . . . Garrison . | . . . . . Intercept . | . . . . . Searches Triggered . | . . . . . Construction Impeded . | . . . . . Haulers Reinforced . | . . . . . Active Scanning Responses . | . . . . . Cargo Convoy Interrupts . | . . . . . Stealth | -11 -10 -10 -10 -9 --------- Run | Yrd Mat Min Exi Min Distress Signals . | . . . . . Communications Jammed . | . . . . . Distress Signals . | . . . . . Times Spotted 36 | . 12 2 . 22 Peak Tracking Total 14 | . 3 2 . 14 Tactical Retreats 2 | . 1 . . 1 Traps | -11 -10 -10 -10 -9 ------- Run | Yrd Mat Min Exi Min Traps Triggered 1 | . 1 . . . Indirectly . | . . . . . Trap Hack Attempts . | . . . . . Triggered . | . . . . . Disarmed . | . . . . . Reprogrammed . | . . . . . Reused . | . . . . . Traps Extracted . | . . . . . Installed . | . . . . . Triggered . | . . . . . Machines | -11 -10 -10 -10 -9 ---------- Run | Yrd Mat Min Exi Min Machines Disabled . | . . . . . Max in Single Turn . | . . . . . Machines Repaired . | . . . . . Machines Dismantled . | . . . . . Machines Sabotaged . | . . . . . Overloaded Fab Kills . | . . . . . Hacking | -11 -10 -10 -10 -9 --------- Run | Yrd Mat Min Exi Min Machines Accessed 8 | . 7 . 1 . Terminals 7 | . 7 . . . Fabricators . | . . . . . Repair Stations . | . . . . . Recycling Units . | . . . . . Scanalyzers . | . . . . . Garrison Access . | . . . . . Total Hacks 16 | . 15 . 1 . Successful 8 | . 7 . 1 . Failed 8 | . 8 . . . Catastrophic 2 | . 2 . . . Database Lockouts . | . . . . . Manual 12 | . 11 . 1 . Terminals 15 | . 15 . . . Fabricators . | . . . . . Repair Stations . | . . . . . Recycling Units . | . . . . . Scanalyzers . | . . . . . Garrison Access . | . . . . . Terminal Hacks 5 | . 4 . 1 . Robot Analysis 1 | . 1 . . . Terminal Index 1 | . 1 . . . Dispatch Records 1 | . 1 . . . Patrol Status 1 | . 1 . . . Proto ID Catalog 1 | . . . 1 . Fabricator Hacks . | . . . . . Repair Station Hacks . | . . . . . Recycling Unit Hacks . | . . . . . Scanalyzer . | . . . . . Garrison Access Hacks . | . . . . . Unauthorized Hacks 3 | . 3 . . . Terminals 3 | . 3 . . . Assimilate 2 | . 2 . . . Operators 1 | . 1 . . . Fabricators . | . . . . . Repair Stations . | . . . . . Recycling Units . | . . . . . Scanalyzers . | . . . . . Garrison Access . | . . . . . Data Cores Recovered . | . . . . . Used . | . . . . . Hacking Detections 5 | . 5 . . . Full Trace Events 1 | . 1 . . . Feedback Events . | . . . . . Feedback Blocked . | . . . . . Robot Schematics Acquired . | . . . . . Robots Built . | . . . . . Authchips . | . . . . . Time . | . . . . . Total Robot Build Rating . | . . . . . Part Schematics Acquired . | . . . . . Parts Built . | . . . . . Authchips . | . . . . . Time . | . . . . . Total Part Build Rating . | . . . . . Parts Repaired . | . . . . . Time . | . . . . . Parts Recycled . | . . . . . Recycled Matter . | . . . . . Retrieved Matter . | . . . . . Retrieved Components . | . . . . . Parts Scanalyzed . | . . . . . Part Schematics Acquired . | . . . . . Parts Damaged . | . . . . . Bothacking | -11 -10 -10 -10 -9 ------------ Run | Yrd Mat Min Exi Min Used RIF Installer . | . . . . . Robots Hacked . | . . . . . Non-combat . | . . . . . Combat . | . . . . . Robot Hacks Applied . | . . . . . Relay Couplers Released . | . . . . . Fabnet Peak Effective % . | . . . . . Robots Rewired . | . . . . . Allies Hacked . | . . . . . Hacks Repelled . | . . . . . Allies | -11 -10 -10 -10 -9 -------- Run | Yrd Mat Min Exi Min Total Allies 4 | . 1 . . 3 Largest Group 4 | . 1 1 1 4 Highest-Rated Group 50 | . 10 10 10 50 Highest-Rated Ally 16 | . 10 10 10 16 Total Orders . | . . . . . Ally Attacks 31 | . . . . 31 Total Damage 329 | . . . . 329 Kills 5 | . . . . 5 Allies Corrupted . | . . . . . Allies Melted . | . . . . . Intel | -11 -10 -10 -10 -9 ------- Run | Yrd Mat Min Exi Min Active Infowar (turns) 1116 | 3 523 247 302 41 Terrain 1116 | 3 523 247 302 41 Robot Analysis Total 1 | . 1 . . . Derelict Logs Recovered . | . . . . . Drone Launches . | . . . . . Drone Recoveries . | . . . . . Exploration | -11 -10 -10 -10 -9 ------------- Run | Yrd Mat Min Exi Min Turns Passed 1221 | 108 523 247 302 41 Spaces Moved 695 | 62 283 118 215 17 Core 11 | 11 . . . . Treads . | . . . . . Legs 684 | 51 283 118 215 17 Wheels . | . . . . . Hover . | . . . . . Flight . | . . . . . Fastest Speed 50 | 50 120 190 120 120 Average Speed 137 | 107 120 190 139 128 Slowest Speed 190 | 120 120 190 190 190 Overloaded Moves . | . . . . . Propulsion Burnouts . | . . . . . Robots Hopped . | . . . . . Potential Cave-ins 1 | . . . . 1 Cave-ins Triggered 1 | . . . . 1 Exploration Rate (%) 36 | 4 70 33 61 12 Regions Visited 4 Branch Regions 3 Pre-discovered Areas . | . . . . . Known Exits Taken . | . . . . . Unknown Exits Taken 4 | 1 1 1 1 . Scrap Searched 1 | . . 1 . . Spaces Dug 1 | . . . . 1 Terrain Destroyed 1 | . . . . 1 Melee . | . . . . . Projectile 1 | . . . . 1 AOE . | . . . . . Terrain Rammed . | . . . . . Walls Destroyed . | . . . . . Machines Disabled . | . . . . . Actions | -11 -10 -10 -10 -9 --------- Run | Yrd Mat Min Exi Min Total 875 | 89 412 131 216 27 Wait 107 | 4 97 6 . . Move 690 | 61 282 117 214 16 Hop . | . . . . . Pick Up 18 | 9 5 2 1 1 Fast Attach . | . . . . . Attach 12 | 7 1 . 1 3 Detach 1 | . . . . 1 Swap 3 | 1 . 1 . 1 Drop . | . . . . . Fire 44 | 7 27 5 . 5 Melee . | . . . . . Ram . | . . . . . Kick . | . . . . . Crush . | . . . . . Escape Stasis . | . . . . . Rewire . | . . . . . Trap . | . . . . . Miscellaneous . | . . . . . Route ------- -11/Scrapyard -10/Materials (discovered 3 exits: [*Mat x2] / [*Min]) -10/Mines (discovered 2 exits: [*Mat] / *Exi) -10/Exiles -9/Mines History --------- Turn | Location | Event 6 | -11/Scrapyard | Discovered new exit (range 15) 109 | -11/Scrapyard | Entered Materials 299 | -10/Materials | Discovered new exit (range 4) 317 | -10/Materials | Build established: Mutant 389 | -10/Materials | Discovered new exit (range 5) 619 | -10/Materials | Discovered new exit (range 6) 632 | -10/Materials | Entered Mines 632 | -10/Mines | Accompanied by 1 ally 697 | -10/Mines | Found a damaged Exp. Sensor Array with a note attached 701 | -10/Mines | Found Prototype Device 707 | -10/Mines | Discovered new exit (range 14) 856 | -10/Mines | Deemed a non-threat by the Exiles lab entrance 858 | -10/Mines | Discovered new exit (range 5) 879 | -10/Mines | Entered Exiles 879 | -10/Exiles | Accompanied by 1 ally 925 | -10/Exiles | Met 8R-AWN 957 | -10/Exiles | Met EX-HEX 1007 | -10/Exiles | Met EX-BIN 1022 | -10/Exiles | Aligned with FarCom system 1023 | -10/Exiles | Given EX-Vault access code 1052 | -10/Exiles | Opened EX-Vault 1059 | -10/Exiles | Found Latent Energy Streamer 1083 | -10/Exiles | Warned to stay clear of 0b10 Research branches 1102 | -10/Exiles | Exiles lab attacked by MAIN.C 1170 | -10/Exiles | Discovered new exit (range 11) 1181 | -10/Exiles | Left Exiles lab with Latent Energy Streamer 1181 | -10/Exiles | Entered Mines 1181 | -9/Mines | Accompanied by 1 ally 1182 | -9/Mines | Assembled infested the area 1183 | -9/Mines | Assisted by bots powering up and referring to "LRC-V3" 1196 | -9/Mines | Core integrity fell below 50% 1222 | -9/Mines | Core integrity fell below 20% 1222 | -9/Mines | Crushed by falling debris 1222 | -9/Mines | Smashed by cave-in Last Messages --------------- as-18682 destroyed. as-53848 destroyed. as-34326 destroyed. The unstable cave ceiling collapses. as-90279 destroyed. as-68648 destroyed. as-98996 destroyed. Acquired 20 matter. The unstable cave ceiling collapses. Trooper 2a destroyed. Acquired Hover Unit. Trooper 2b destroyed. Aluminum Leg destroyed. U-05 Engineer lays Concrete. The unstable cave ceiling collapses. U-05 Engineer lays Concrete. The unstable cave ceiling collapses. Crushed by falling debris. Aluminum Leg destroyed. System corrupted by crushing effect (+3). Map ----- +----------------------------------------------------+ | ?????????????????????????????????????????????????? | | ?????????????????????????????????????????????????? | | ?????????????????????????????????????????????????? | | ?????????????????????????????????????????????????? | | ?????????????????????????????????????????????????? | | ?????????????????????????????????????????????????? | | ?????????????????????????????????????????????????? | | ?????????????????????????????????????????????????? | | ?????????????????????????????????????????????????? | | ?????????????????????????????????????????????????? | | ?????????????????????????????#???????????????????? | | ?????????????? ????#?????????????????????????????? | | ????????????????##??????????? ???????????????????? | | ???????? ????????#???????????????????????????????? | | ??????????#???#??#???????????????????????????????? | | ????????????? ??###???? ?????????#???????????????? | | ????????????????# ???????????????#?????????????? | | ????????????????# ##???????????????????????????? | | ???????????????### ######?????????????????????? | | ??????????#???## #?????????????????????? | | ????????"?????# #?????????????????????? | | ??????????????## == #?????????????????????? | | ??????????????# %% ####??????#????????????? | | ??????????????## = ##??????????????????? | | ??????????????## #u #???????????????? | | ???????????????# =* @ % #?????????????? | | ???????????????### ????????? | | ?????????????????# d ????????? | | ???????????????## d ?????????? | | ???????????????# r ?????????? | | ???????????????# ??????????? | | ?????????????? # #??????????? | | ???????????? #### #??????????? | | ??????????? < # #######???? ???????????? | | ?????????? ###??????????????????????? | | ??????????? #### ##???#????????????????????? | | ???????????????## ??????????????????????????? | | ????????????????## ??????????????????????????? | | ?????????????????## #??????????????????????????? | | ??????????????????####???????????????????????????? | | ?????????????????????????????????????????????????? | | ?????????????????????????????????????????????????? | | | | | | | | | | | | | | | | | +----------------------------------------------------+ Best States ------------- Heat Dissipation 25 Energy Generation 10 Energy Capacity 250 Matter Stores 300 Matter Capacity 300 Sight Range 16 Terrain Scan Range 16 Terrain Scan Density 10 Evasion (%) 55 Item Schematics ----------------- None Robot Schematics ------------------ None Fabricated ------------ Nothing Repaired ---------- Nothing Alien Tech Used ----------------- None Achievements -------------- None Challenges ------------ None Game ------ Seed CombatBurstReplicator Manual? 0 Play Time 00:12:05 Cumulative 31.2 hours Start 2025.10.14 @ 02:19:56 End 2025.10.14 @ 02:31:15 Sessions 1 Manual Loads 0 Difficulty Rogue Special Mode None Game No. 79 Rogue 79 Adventurer 0 Explorer 0 Win Type - Total 0 Types 0/0/0/0/0/0/0/0/0/0 Lore% 23 Gallery% 30 Achievement% 29 Wizard Run 0 Options --------- Layout 2 ASCII 0 Keyboard 0 Movement Numpad Keybinds 0 Fullscreen 1 Font 24/Smallcaps Map View 50x44 Zoom Use 0% Tactical HUD 0 Map Filters NONE Filters NONE Steam 1 RUN: a3ead780-3634-4f2c-8454-44ef302e24b2